fUSD/lending_fUSD_20260429
["ID","MTS","AMOUNT","RATE_DAILY","PERIOD"]
[421305516,1777399832995,-2921.90341703,0.000109,2]
[421305518,1777399833004,-433.0,0.00010927,2]
[421305520,1777399833014,-49.12110818,0.00010927,2]
[421305523,1777399833026,-2301.87889182,0.00010927,2]
[421305525,1777399833035,-587.0,0.00010927,2]
[421305527,1777399833044,-1663.0,0.00010944,2]
[421305529,1777399833053,-2826.856,0.00010944,2]
[421305531,1777399833062,-416.0,0.00010944,2]
[421305533,1777399833071,-500.0,0.00010959,2]
[421305535,1777399833081,-250.0,0.00010959,2]
[421305537,1777399833090,-332.65,0.00010959,2]
[421305539,1777399833099,-1049.0,0.00010975,2]
[421305540,1777399833108,-1350.0,0.00010975,2]
[421305542,1777399833117,-1096.56617529,0.00010975,2]
[421305555,1777399838300,-2435.43382471,0.00010975,2]
[421305556,1777399838309,-1266.0,0.00010975,2]
[421305557,1777399838319,-927.0,0.00010975,2]
[421305558,1777399838328,-1220.0,0.00010975,2]
[421305559,1777399838337,-378.71,0.00010989,2]
[421305560,1777399838347,-280.61,0.00010989,2]
[421305561,1777399838356,-150.0,0.00011075,2]
[421305562,1777399838365,-2921.90341703,0.00011081,2]
[421305563,1777399838375,-200.0,0.00011096,2]
[421305564,1777399838384,-9809.07420006,0.00011099,2]
[421305565,1777399838394,-9809.07420005,0.00011099,2]
[421305566,1777399838403,-9809.07420005,0.00011099,2]
[421305567,1777399838412,-9809.07420005,0.00011099,2]
[421305568,1777399838422,-9809.07420005,0.00011099,2]
[421305569,1777399838432,-9809.07420005,0.00011099,2]
[421305570,1777399838441,-9809.07420005,0.00011099,2]
[421305571,1777399838451,-577.96,0.0001116,2]
[421305572,1777399838460,-9809.07420005,0.00011263,2]
[421305573,1777399838470,-9999.99,0.00011281,2]
[421305574,1777399838479,-150.99,0.00011281,2]
[421305575,1777399838489,-151.0,0.00011361,2]
[421305576,1777399838499,-172.01265793,0.00011373,2]
[421305577,1777399838508,-522.06145725,0.00011373,2]
[421305578,1777399838518,-265.56900506,0.00011373,2]
[421305579,1777399838528,-500.0,0.00011373,2]
[421305580,1777399838537,-500.0,0.00011373,2]
[421305581,1777399838547,-150.0,0.00011374,2]
[421305582,1777399838556,-2000.0,0.00011398,2]
[421305583,1777399838565,-225.13410682,0.00011399,2]
[421305584,1777399838575,-500.0,0.00011399,2]
[421305585,1777399838584,-383.83580625,0.00011399,2]
[421305586,1777399838594,-500.0,0.00011399,2]
[421305587,1777399838603,-385.55411852,0.00011399,2]
[421305588,1777399838612,-379.16244952,0.00011399,2]
[421305589,1777399838622,-500.0,0.00011399,2]
[421305591,1777399838632,-2228.0,0.000114,2]
[421305593,1777399838641,-20343.92636862,0.000114,2]
[421305595,1777399838654,-252.9257169,0.000114,2]
[421305598,1777399838665,-262030.84382621,0.000114,2]
[421305600,1777399838675,-2921.90341703,0.0001149,2]
[421305602,1777399838684,-9809.07420005,0.00011581,2]
[421305604,1777399838693,-200.0,0.00011644,2]
[421305606,1777399838702,-150.0,0.00011673,2]
[421305607,1777399838712,-3380.41,0.000117,2]
[421305609,1777399838721,-10906.53,0.000117,2]
[421305611,1777399838730,-4771.28,0.000117,2]
[421305614,1777399838740,-4420.87987544,0.0001176,2]
[421305616,1777399838749,-150.0,0.00011829,2]
[421305618,1777399838759,-150.0,0.00011829,2]
[421305620,1777399838768,-5000.0,0.00011873,2]
[421305622,1777399838777,-780.85318051,0.00011891,2]
[421305624,1777399838787,-780.85318051,0.00011896,2]
[421305626,1777399838797,-1701.41236085,0.000119,3]
[421305628,1777399838807,-9809.07420005,0.000119,2]
[421305630,1777399838816,-780.85318051,0.000119,2]
[421305631,1777399838825,-2921.90341703,0.000119,2]
[421305633,1777399838835,-206.65104624,0.000119,2]
[421305635,1777399838844,-45805.41509894,0.000119,2]
[421305637,1777399838854,-11473.54614553,0.000119,2]
[421305639,1777399838862,-200.0,0.00011903,2]
[421305641,1777399838872,-200.0,0.00011904,2]
[421305643,1777399838882,-7297.73070865,0.0001191,2]
[421305645,1777399838891,-162.71056095,0.00011921,2]
[421305648,1777399838901,-1000.0,0.00011921,2]
[421305650,1777399838910,-20708.2883595,0.00011964,2]
[421305652,1777399838919,-44078.0,0.00011973,2]
[421305654,1777399838929,-18806.0,0.00011973,2]
[421305656,1777399838938,-164.11242867,0.00011973,2]
[421305658,1777399838947,-500.0,0.00011973,2]
[421305660,1777399838956,-500.0,0.00011973,2]
[421305662,1777399838965,-150.0,0.00011973,2]
[421305664,1777399838974,-150.0,0.00011973,2]
[421305666,1777399838983,-500.0,0.00011973,2]
[421305668,1777399838992,-411.28244024,0.00011973,2]
[421305670,1777399839001,-500.75597371,0.00011973,2]
[421305672,1777399839010,-500.0,0.00011973,2]
[421305674,1777399839019,-500.0,0.00011973,2]
[421305676,1777399839029,-500.0,0.00011973,2]
[421305678,1777399839038,-500.0,0.00011973,2]
[421305680,1777399839047,-500.0,0.00011973,2]
[421305682,1777399839056,-265.95504776,0.00011973,2]
[421305684,1777399839066,-500.0,0.00011973,2]
[421305686,1777399839075,-1217.90324046,0.00011981,2]
[421305688,1777399839084,-151.0,0.00011988,2]
[421305690,1777399839093,-151.0,0.00011988,2]
[421305692,1777399839103,-151.0,0.00011988,2]
[421305694,1777399839113,-151.0,0.00011988,2]
[421305696,1777399839122,-256.45192907,0.00011988,2]
[421305698,1777399839131,-151.0,0.00011988,2]
[421305700,1777399839141,-155.0,0.0001199,2]
[421305701,1777399839150,-300.0,0.0001199,2]
[421305703,1777399839160,-155.0,0.0001199,2]
[421305706,1777399839169,-1217.90324046,0.0001199,2]
[421305707,1777399839179,-1217.90324046,0.0001199,2]
[421305710,1777399839188,-735.0,0.00011991,5]
[421305712,1777399839198,-586.0,0.00011991,5]
[421305714,1777399839207,-469503.2111181,0.00011991,2]
[421305716,1777399839216,-328920.1651254,0.00011991,2]
[421305718,1777399839226,-10304.5808469,0.00011991,2]
[421305720,1777399839235,-22917.4178874,0.00011991,2]
[421305722,1777399839245,-2736.0165944,0.00011991,2]
[421305724,1777399839253,-95648.7971905,0.00011991,2]
[421305726,1777399839262,-610.4878208,0.00011991,2]
[421305728,1777399839271,-10450.9504689,0.00011991,2]
[421305730,1777399839280,-666.0,0.00011999,2]
[421305732,1777399839289,-300.0,0.00011999,2]
[421305734,1777399839298,-300.0,0.00011999,2]
[421305736,1777399839307,-666.0,0.00011999,2]
[421305738,1777399839316,-300.0,0.00011999,2]
[421305740,1777399839325,-666.0,0.00011999,2]
[421305742,1777399839334,-300.0,0.00011999,2]
[421305744,1777399839344,-666.0,0.00011999,2]
[421305746,1777399839353,-300.0,0.00011999,2]
[421305748,1777399839362,-666.0,0.00011999,2]
[421305750,1777399839371,-666.0,0.00011999,2]
[421305752,1777399839380,-666.0,0.00011999,2]
[421305754,1777399839389,-155.0,0.00011999,2]
[421305755,1777399839398,-4836500.21075168,0.00012,2]
[421305757,1777399839414,-6859.99277437,0.00012,2]
[421305759,1777399839425,-580.29201335,0.00012,2]
[421305762,1777399839437,-380.24418438,0.00012,2]
[421305876,1777399840629,-991185.39387005,0.00012,2]
[421305877,1777399840737,-1717059.37186396,0.00012,2]
[421305909,1777399843330,-3782.0,0.00010944,2]
[421305910,1777399843340,-2947.25325029,0.0001176,2]
[421305911,1777399843349,-1512069.64405954,0.00012,2]
[421305912,1777399843358,-305445.16828893,0.00012,2]
[421305913,1777399843368,-276125.66547053,0.00012,2]
[421305914,1777399843378,-558882.83767843,0.00012,2]
[421305915,1777399843387,-311.86,0.00012,2]
[421305916,1777399843396,-562655.39660763,0.00012,2]
[421305917,1777399843405,-311.85,0.00012,2]
[421305918,1777399843415,-311.86,0.00012,2]
[421305919,1777399843425,-2877652.47484203,0.00012,2]
[421305920,1777399843434,-682.96,0.00012,2]
[421305921,1777399843444,-682.95,0.00012,2]
[421305922,1777399843453,-1980.0,0.00012,3]
[421305923,1777399843462,-273.19,0.00012,2]
[421305924,1777399843471,-200.0,0.00012,2]
[421305925,1777399843480,-181908.40730992,0.00012,2]
[421305926,1777399843490,-3604799.91732527,0.00012,2]
[421305927,1777399843499,-150.0,0.00012,2]
[421305928,1777399843508,-8052.10225055,0.00012,2]
[421305929,1777399843517,-150.0,0.00012,2]
[421305930,1777399843526,-37204.92413771,0.00012,2]
[421305931,1777399843591,-11629.49548726,0.00012,2]
[421305932,1777399843602,-4047.0,0.00012,2]
[421305948,1777399846669,-1964.83550019,0.0001176,2]
[421305949,1777399846679,-5166.63569381,0.00012,2]
[421305950,1777399846771,-8968.11756598,0.00012,2]
[421305951,1777399846780,-478.75219294,0.00012,2]
[421305952,1777399846790,-1000.0,0.00012,2]
[421305953,1777399846799,-1000.0,0.00012,2]
[421305954,1777399846809,-1000.0,0.00012,2]
[421305955,1777399846818,-744.97471172,0.00012,2]
[421305956,1777399846827,-200.0,0.00012,2]
[421305957,1777399846837,-200.0,0.00012,2]
[421305958,1777399846846,-9072.87153747,0.00012,2]
[421305959,1777399846858,-10913.86,0.00012,2]
[421305960,1777399846876,-1538.77951083,0.00012,2]
[421305961,1777399847024,-328.48571956,0.00012,2]
[421305962,1777399847036,-725.3672,0.00012,2]
[421305963,1777399847048,-762.69,0.00012,2]
[421305964,1777399847060,-1592.371,0.00012,2]
[421305965,1777399847076,-2843.36225276,0.00012,2]
[421305970,1777399996698,-280.0,8.219e-05,2]
[421305971,1777399996721,-300.0,8.93e-05,2]
[421305972,1777399996750,-22084.0,8.931e-05,2]
[421305976,1777400330033,235.06,8.112e-05,2]
[421305977,1777400959478,-1196337.34377156,0.00042542,30]
[421305978,1777400959522,-151.0,0.00042542,120]
[421305979,1777400959568,-500.0,0.00042542,120]
[421305980,1777400959611,-500.0,0.00042542,120]
[421305981,1777400959656,-500.0,0.00042542,120]
[421305982,1777400959701,-500.0,0.00042542,120]
[421305983,1777400959746,-500.0,0.00042542,120]
[421305984,1777400959791,-357.45034491,0.00042542,120]
[421305985,1777400959834,-1292.1,0.00042542,60]
[421305986,1777400959879,-1292.1,0.00042542,60]
[421305987,1777400959922,-1292.1,0.00042542,60]
[421305988,1777400959966,-1292.1,0.00042542,60]
[421305989,1777400960009,-1292.1,0.00042542,60]
[421305990,1777400960053,-646.05,0.00042542,60]
[421305991,1777400960099,-646.05,0.00042542,60]
[421305992,1777400960147,-646.05,0.00042542,60]
[421305993,1777400960194,-646.05,0.00042542,60]
[421305994,1777400960241,-646.05,0.00042542,60]
[421305995,1777400960285,-500.0,0.00042542,60]
[421305996,1777400960332,-500.0,0.00042542,60]
[421305997,1777400960379,-500.0,0.00042542,60]
[421305998,1777400960426,-500.0,0.00042542,60]
[421305999,1777400960473,-500.0,0.00042542,60]
[421306000,1777400960520,-22035.40756615,0.00042542,35]
[421306001,1777400960567,-730.27,0.00042542,60]
[421306002,1777400960613,-100000.0,0.00042542,120]
[421306003,1777400960659,-38809.0,0.00042542,30]
[421306004,1777400960705,-100000.0,0.00042542,120]
[421306005,1777400960751,-100000.0,0.00042542,30]
[421306006,1777400960796,-500.0,0.00042542,120]
[421306007,1777400960841,-500.0,0.00042542,120]
[421306008,1777400960885,-500.0,0.00042542,120]
[421306009,1777400960929,-588.17407077,0.00042542,120]
[421306010,1777400960973,-100000.0,0.00042542,30]
[421306011,1777400961016,-500.0,0.00042542,30]
[421306012,1777400961061,-671.0,0.00042542,120]
[421306013,1777400961106,-46399.999998,0.00042542,30]
[421306014,1777400961152,-15407.3068487,0.00042542,30]
[421306015,1777400961197,-14292784.46659483,0.00042542,30]
[421306016,1777400961242,-150135.88855219,0.00042542,30]
[421306017,1777400961285,-34573.47212102,0.00042542,30]
[421306018,1777400961331,-11079.81153881,0.00042542,120]
[421306019,1777400961375,-1695.59222878,0.00042542,120]
[421306020,1777400961419,-1000.0,0.00042542,30]
[421306021,1777400961463,-3000.0,0.00042542,30]
[421306022,1777400961507,-13100.92252565,0.00042542,120]
[421306023,1777400961553,-400159.95998399,0.00042542,120]
[421306024,1777400961599,-186.54751228,0.00042542,120]
[421306025,1777400961643,-500.0,0.00042542,120]
[421306026,1777400961687,-500.0,0.00042542,120]
[421306027,1777400961730,-500.0,0.00042542,120]
[421306028,1777400961773,-500.0,0.00042542,120]
[421306029,1777400962034,-500.0,0.00042542,120]
[421306030,1777400962081,-428.61939142,0.00042542,120]
[421306031,1777400962129,-236.0,0.00042542,120]
[421306032,1777400962175,-300.02,0.00042542,120]
[421306033,1777400962221,-300.0,0.00042542,120]
[421306034,1777400962269,-500.0,0.00042542,120]
[421306035,1777400962315,-5000.0,0.00042542,30]
[421306036,1777400962361,-2876.83,0.00042542,120]
[421306037,1777400962408,-12341964.16695094,0.00042542,30]
[421306038,1777400977612,-752390.31164001,0.00042542,30]
[421306039,1777400977718,-36285.03228638,0.00042542,31]
[421306040,1777400977832,-5711.78469886,0.00042542,30]
[421306041,1777400977918,-5365.35650556,0.00042542,30]
[421306042,1777400977984,-462627.58919723,0.00042542,30]
[421306043,1777400978049,-12207.12791322,0.00042542,30]
[421306044,1777400978109,-95933.81578785,0.00042542,30]
[421306045,1777400978169,-4204.81569115,0.00042542,30]
[421306046,1777400978231,-160513.97155097,0.00042542,30]
[421306047,1777400978288,-2000.0,0.00042542,120]
[421306048,1777400978349,-157.91,0.00042542,120]
[421306049,1777400978410,-2242.5,0.00042542,120]
[421306050,1777400978470,-2242.5,0.00042542,120]
[421306051,1777400978530,-2242.5,0.00042542,120]
[421306052,1777400978588,-2242.5,0.00042542,120]
[421306053,1777400978649,-2242.5,0.00042542,120]
[421306054,1777400978709,-2242.54,0.00042542,120]
[421306055,1777400978773,-50000.0,0.00042542,40]
[421306056,1777400978831,-55000.0,0.00042542,120]
[421306057,1777400978887,-1117.0,0.00042542,30]
[421306058,1777400978943,-10000.0,0.00042542,120]
[421306059,1777400978998,-10000.0,0.00042542,120]
[421306060,1777400979054,-10000.0,0.00042542,120]
[421306061,1777400979109,-10000.0,0.00042542,120]
[421306062,1777400979165,-10000.0,0.00042542,120]
[421306063,1777400979221,-27038.11002698,0.00042542,120]
[421306064,1777400979281,-50000.0,0.00042542,41]
[421306065,1777400979335,-77856.17636471,0.00042542,120]
[421306066,1777400979391,-600000.0,0.00042542,120]
[421306067,1777400979445,-600000.0,0.00042542,120]
[421306068,1777400979498,-600000.0,0.00042542,120]
[421306069,1777400979552,-600000.0,0.00042542,120]
[421306070,1777400979604,-312528.95,0.00042542,120]
[421306071,1777400979656,-14590.08286045,0.00042542,120]
[421306072,1777400979710,-600000.0,0.00042542,120]
[421306073,1777400979762,-519934.08,0.00042542,120]
[421306074,1777400979815,-3974.29861143,0.00042542,120]
[421306075,1777400979866,-8235.0,0.00042542,120]
[421306076,1777400979919,-500.0,0.00042542,120]
[421306077,1777400979971,-240.08,0.00042542,120]
[421306078,1777400980023,-423.51,0.00042542,120]
[421306079,1777400980073,-5577.814425,0.00042542,120]
[421306080,1777400980124,-522.87,0.00042542,120]
[421306081,1777400980176,-522.87,0.00042542,120]
[421306082,1777400980227,-522.87,0.00042542,120]
[421306083,1777400980278,-522.87,0.00042542,120]
[421306084,1777400980330,-522.87,0.00042542,120]
[421306085,1777400980381,-522.87,0.00042542,120]
[421306086,1777400980432,-522.87,0.00042542,120]
[421306087,1777400980483,-522.87,0.00042542,120]
[421306088,1777400980534,-522.87,0.00042542,120]
[421306089,1777400980587,-522.87,0.00042542,120]
[421306090,1777400980638,-522.87,0.00042542,120]
[421306091,1777400980689,-522.87,0.00042542,120]
[421306092,1777400980741,-522.87,0.00042542,120]
[421306093,1777400980791,-522.87,0.00042542,120]
[421306094,1777400980841,-522.87,0.00042542,120]
[421306095,1777400980889,-522.87,0.00042542,120]
[421306096,1777400980938,-522.87,0.00042542,120]
[421306097,1777400980987,-522.87,0.00042542,120]
[421306098,1777400981035,-522.87,0.00042542,120]
[421306099,1777400981084,-522.87,0.00042542,120]
[421306100,1777400981134,-522.87,0.00042542,120]
[421306101,1777400981183,-522.87,0.00042542,120]
[421306102,1777400981232,-522.87,0.00042542,120]
[421306103,1777400981282,-523.00947796,0.00042542,120]
[421306104,1777400981332,-20328.0,0.00042542,120]
[421306105,1777400981381,-5670.81773746,0.00042542,120]
[421306106,1777400981431,-41100.80265621,0.00042542,120]
[421306107,1777400981480,-7618.30736044,0.00042542,120]
[421306108,1777400981527,-10935.86111215,0.00042542,120]
[421306109,1777400981575,-5165.33986396,0.00042542,60]
[421306110,1777400981625,-14766.62937741,0.00042542,120]
[421306111,1777400981673,-1000.0,0.00042542,31]
[421306112,1777400981720,-300000.0,0.00042542,120]
[421306113,1777400981767,-300000.0,0.00042542,120]
[421306114,1777400981814,-300000.0,0.00042542,120]
[421306115,1777400981861,-100000.0,0.00042542,120]
[421306116,1777400981909,-500.0,0.00042542,120]
[421306117,1777400981956,-500.0,0.00042542,120]
[421306118,1777400982003,-500.0,0.00042542,120]
[421306119,1777400982050,-500.0,0.00042542,120]
[421306120,1777400982096,-500.0,0.00042542,120]
[421306121,1777400982144,-500.0,0.00042542,120]
[421306122,1777400982191,-500.0,0.00042542,120]
[421306123,1777400982238,-500.0,0.00042542,120]
[421306124,1777400982284,-500.0,0.00042542,120]
[421306125,1777400982329,-500.0,0.00042542,120]
[421306126,1777400982546,-500.0,0.00042542,120]
[421306127,1777400982613,-500.0,0.00042542,120]
[421306128,1777400982658,-500.0,0.00042542,120]
[421306129,1777400982704,-430.74285186,0.00042542,120]
[421306130,1777400982750,-2000.0,0.00042542,120]
[421306131,1777400982795,-2000.0,0.00042542,120]
[421306132,1777400982841,-2000.0,0.00042542,120]
[421306133,1777400982887,-821.25,0.00042542,120]
[421306134,1777400982932,-183.17,0.00042542,120]
[421306135,1777400982976,-500.0,0.00042542,120]
[421306136,1777400983021,-527.26627453,0.00042542,120]
[421306137,1777400983066,-1610.0,0.00042542,120]
[421306138,1777400983112,-2667.533399,0.00042542,30]
[421306139,1777400983158,-10463.60794941,0.00042542,60]
[421306140,1777400983204,-500.0,0.00042542,120]
[421306141,1777400983249,-500.0,0.00042542,120]
[421306142,1777400983294,-500.0,0.00042542,120]
[421306143,1777400983339,-500.0,0.00042542,120]
[421306144,1777400983384,-500.0,0.00042542,120]
[421306145,1777400983428,-508.97421974,0.00042542,120]
[421306146,1777400983472,-456.83906141,0.00042542,30]
[421306147,1777400983517,-101303.76115766,0.00042542,120]
[421306148,1777400983561,-100000.0,0.00042542,90]
[421306149,1777400983606,-581.60030076,0.00042542,30]
[421306150,1777400983651,-3046786.8788,0.00042542,30]
[421306151,1777400983695,-371.9688158,0.00042542,120]
[421306152,1777400983739,-200.4166695,0.00042542,120]
[421306153,1777400983783,-297.4037885,0.00042542,120]
[421306154,1777400983828,-702.5661644,0.00042542,120]
[421306155,1777400983872,-164.0716611,0.00042542,120]
[421306156,1777400983917,-193.7803164,0.00042542,120]
[421306157,1777400983960,-563.89441538,0.00042542,120]
[421306158,1777400984006,-151.9335008,0.00042542,120]
[421306159,1777400984051,-50000.0,0.00042542,30]
[421306160,1777400984094,-68988.0,0.00042542,30]
[421306161,1777400984137,-4089.58250454,0.00042542,120]
[421306162,1777400984181,-1008.40128245,0.00042542,30]
[421306163,1777400984224,-3947.705,0.00042542,120]
[421306164,1777400984268,-38766.737324,0.00042542,120]
[421306165,1777400984312,-500.0,0.00042542,30]
[421306166,1777400984356,-500.0,0.00042542,30]
[421306167,1777400984398,-501.35400448,0.00042542,30]
[421306168,1777400984443,-500.0,0.00042542,120]
[421306169,1777400984488,-500.0,0.00042542,120]
[421306170,1777400984532,-621.69,0.00042542,120]
[421306171,1777400984578,-286.38,0.00042542,120]
[421306172,1777400984623,-500.0,0.00042542,30]
[421306173,1777400984666,-500.0,0.00042542,30]
[421306174,1777400984710,-500.0,0.00042542,30]
[421306175,1777400984755,-500.0,0.00042542,30]
[421306176,1777400984799,-500.0,0.00042542,30]
[421306177,1777400984844,-500.0,0.00042542,30]
[421306178,1777400984888,-500.0,0.00042542,30]
[421306179,1777400984932,-2154.86859631,0.00042542,30]
[421306180,1777400984975,-1117.0,0.00042542,30]
[421306181,1777400985019,-1117.0,0.00042542,30]
[421306182,1777400985062,-151.4364804,0.00042542,120]
[421306183,1777400985105,-695.6,0.00042542,120]
[421306184,1777400985148,-1117.0,0.00042542,30]
[421306185,1777400985192,-1117.0,0.00042542,30]
[421306186,1777400985236,-1119.1755126,0.00042542,30]
[421306187,1777400985283,-3000.1,0.00042542,120]
[421306188,1777400985329,-500.0,0.00042542,120]
[421306189,1777400985375,-267.57,0.00042542,120]
[421306190,1777400985420,-214.1251532,0.00042542,120]
[421306191,1777400985464,-100000.0,0.00042542,30]
[421306192,1777400985509,-500.0,0.00042542,120]
[421306193,1777400985554,-500.0,0.00042542,120]
[421306194,1777400985599,-500.0,0.00042542,120]
[421306195,1777400985643,-500.0,0.00042542,120]
[421306196,1777400985687,-500.0,0.00042542,120]
[421306197,1777400985731,-500.0,0.00042542,120]
[421306198,1777400985774,-158.2695069,0.00042542,120]
[421306199,1777400985818,-500.0,0.00042542,120]
[421306200,1777400985863,-500.0,0.00042542,120]
[421306201,1777400985907,-500.0,0.00042542,120]
[421306202,1777400985951,-500.0,0.00042542,120]
[421306203,1777400985995,-500.0,0.00042542,120]
[421306204,1777400986041,-200.76518217,0.00042542,120]
[421306205,1777400986086,-500.0,0.00042542,30]
[421306206,1777400986130,-500.0,0.00042542,30]
[421306207,1777400986173,-229.4685908,0.00042542,30]
[421306208,1777400986218,-568.25,0.00042542,30]
[421306209,1777400986262,-477.94,0.00042542,30]
[421306210,1777400986306,-152.34,0.00042542,30]
[421306211,1777400986350,-1000.0,0.00042542,30]
[421306212,1777400986394,-100000.0,0.00042542,30]
[421306213,1777400986439,-500.0,0.00042542,30]
[421306214,1777400986484,-500.0,0.00042542,30]
[421306215,1777400986529,-455.77673057,0.00042542,30]
[421306216,1777400986574,-392.7,0.00042542,30]
[421306217,1777400986619,-478.05,0.00042542,30]
[421306218,1777400986664,-392.71,0.00042542,30]
[421306219,1777400986709,-570.49,0.00042542,30]
[421306220,1777400986753,-568.28,0.00042542,30]
[421306221,1777400986797,-392.75,0.00042542,30]
[421306222,1777400986841,-100000.0,0.00042542,30]
[421306223,1777400986886,-392.75,0.00042542,30]
[421306224,1777400986930,-478.05,0.00042542,30]
[421306225,1777400986980,-568.24,0.00042542,30]
[421306226,1777400987027,-34204.24138422,0.00042542,120]
[421306227,1777400987074,-151.0,0.00042542,30]
[421306228,1777400987122,-500.0,0.00042542,30]
[421306229,1777400987169,-543.30372066,0.00042542,30]
[421306230,1777400987219,-500.0,0.00042542,120]
[421306231,1777400987430,-642.380769,0.00042542,120]
[421306232,1777400987479,-514.664015,0.00042542,120]
[421306233,1777400987525,-500.0,0.00042542,120]
[421306234,1777400987572,-561.57507109,0.00042542,120]
[421306235,1777400987618,-642.9150699,0.00042542,120]
[421306236,1777400987663,-500.0,0.00042542,120]
[421306237,1777400987708,-500.0,0.00042542,120]
[421306238,1777400987752,-500.0,0.00042542,120]
[421306239,1777400987796,-500.0,0.00042542,120]
[421306240,1777400987840,-500.0,0.00042542,120]
[421306241,1777400987886,-500.0,0.00042542,120]
[421306242,1777400987930,-500.0,0.00042542,120]
[421306243,1777400987972,-334.64903593,0.00042542,120]
[421306244,1777400988017,-367.54073514,0.00042542,120]
[421306245,1777400988059,-508.87077715,0.00042542,120]
[421306246,1777400988103,-500.0,0.00042542,120]
[421306247,1777400988146,-500.0,0.00042542,120]
[421306248,1777400988190,-500.0,0.00042542,120]
[421306249,1777400988234,-500.0,0.00042542,120]
[421306250,1777400988278,-500.0,0.00042542,120]
[421306251,1777400988321,-500.0,0.00042542,120]
[421306252,1777400988365,-500.0,0.00042542,120]
[421306253,1777400988408,-500.0,0.00042542,120]
[421306254,1777400988452,-500.0,0.00042542,120]
[421306255,1777400988495,-518.45901476,0.00042542,120]
[421306256,1777400988539,-500.0,0.00042542,120]
[421306257,1777400988584,-500.0,0.00042542,120]
[421306258,1777400988630,-500.0,0.00042542,120]
[421306259,1777400988678,-500.0,0.00042542,120]
[421306260,1777400988725,-232.82036713,0.00042542,120]
[421306261,1777400988774,-500.0,0.00042542,120]
[421306262,1777400988823,-500.0,0.00042542,120]
[421306263,1777400988871,-500.0,0.00042542,120]
[421306264,1777400988920,-500.0,0.00042542,120]
[421306265,1777400988969,-596.74642758,0.00042542,120]
[421306266,1777400989017,-500.0,0.00042542,120]
[421306267,1777400989065,-500.0,0.00042542,120]
[421306268,1777400989114,-621.79773903,0.00042542,120]
[421306269,1777400989162,-500.0,0.00042542,120]
[421306270,1777400989210,-500.0,0.00042542,120]
[421306271,1777400989258,-506.08090175,0.00042542,120]
[421306272,1777400989306,-411.64139889,0.00042542,120]
[421306273,1777400989352,-500.0,0.00042542,120]
[421306274,1777400989398,-648.66,0.00042542,120]
[421306275,1777400989443,-522.98523545,0.00042542,120]
[421306276,1777400989488,-500.0,0.00042542,120]
[421306277,1777400989533,-500.0,0.00042542,120]
[421306278,1777400989578,-276.5371923,0.00042542,120]
[421306279,1777400989622,-500.0,0.00042542,120]
[421306280,1777400989667,-500.0,0.00042542,120]
[421306281,1777400989712,-500.0,0.00042542,120]
[421306282,1777400989759,-500.0,0.00042542,120]
[421306283,1777400989806,-500.0,0.00042542,120]
[421306284,1777400989853,-500.0,0.00042542,120]
[421306285,1777400989897,-500.0,0.00042542,120]
[421306286,1777400989942,-500.0,0.00042542,120]
[421306287,1777400989987,-442.08361878,0.00042542,120]
[421306288,1777400990033,-555.05654781,0.00042542,120]
[421306289,1777400990078,-500.0,0.00042542,120]
[421306290,1777400990139,-500.0,0.00042542,120]
[421306291,1777400990187,-500.0,0.00042542,120]
[421306292,1777400990237,-500.0,0.00042542,120]
[421306293,1777400990285,-500.0,0.00042542,120]